[Event "*** Titled Tuesday Blitz"]
[Site "Chess.com"]
[Date "2020.12.01"]
[Round "10"]
[White "WPWPWP-2015"]
[Black "AcsinteMatei"]
[Result "1-0"]
[WhiteElo "2495"]
[BlackElo "2351"]
[TimeControl "180+1"]
[EndTime "11:52:40 PST"]
[Termination "WPWPWP-2015 won by resignation"]

1. e4 {[%clk 0:03:00.9]} 1... c6 {[%clk 0:02:36.3]} 2. d4 {[%clk 0:02:57.7]}
2... d5 {[%clk 0:02:37.2]} 3. Nc3 {[%clk 0:02:58.4]} 3... g6 {[%clk 0:02:33.9]}
4. Nf3 {[%clk 0:02:54.7]} 4... Bg7 {[%clk 0:02:33.3]} 5. h3 {[%clk 0:02:52.9]}
5... dxe4 {[%clk 0:02:31.2]} 6. Nxe4 {[%clk 0:02:52.4]} 6... Nf6 {[%clk
0:02:32.1]} 7. Ned2 {[%clk 0:02:47.3]} 7... Be6 {[%clk 0:02:19.4]} 8. Bd3 {[%clk
0:02:45.3]} 8... Nbd7 {[%clk 0:02:18.5]} 9. O-O {[%clk 0:02:40.5]} 9... c5
{[%clk 0:02:18.1]} 10. Ng5 {[%clk 0:02:39.3]} 10... Bd5 {[%clk 0:02:18.3]} 11.
c4 {[%clk 0:02:38.4]} 11... Bxg2 {[%clk 0:02:15.2]} 12. Kxg2 {[%clk 0:02:33.9]}
12... cxd4 {[%clk 0:02:16.1]} 13. Ngf3 {[%clk 0:02:28.1]} 13... e5 {[%clk
0:02:15]} 14. Ne4 {[%clk 0:02:25]} 14... Nxe4 {[%clk 0:02:10.5]} 15. Bxe4 {[%clk
0:02:25.9]} 15... Nc5 {[%clk 0:02:11]} 16. Bd5 {[%clk 0:02:21.5]} 16... O-O
{[%clk 0:02:10]} 17. Re1 {[%clk 0:02:14]} 17... Qd6 {[%clk 0:01:57.5]} 18. Ng5
{[%clk 0:02:04.7]} 18... Rae8 {[%clk 0:01:41]} 19. Qf3 {[%clk 0:01:55.9]} 19...
Re7 {[%clk 0:01:31.9]} 20. b4 {[%clk 0:01:51.7]} 20... e4 {[%clk 0:00:51.2]} 21.
Nxe4 {[%clk 0:01:36.6]} 21... Nxe4 {[%clk 0:00:50.8]} 22. Rxe4 {[%clk
0:01:36.2]} 22... Rxe4 {[%clk 0:00:35.4]} 23. Bxe4 {[%clk 0:01:37.1]} 23... Qxb4
{[%clk 0:00:35.6]} 24. Ba3 {[%clk 0:01:36.5]} 1-0

[Event "*** Titled Tuesday Blitz"]
[Site "Chess.com"]
[Date "2020.12.01"]
[Round "10"]
[White "03revilo"]
[Black "nikitadovbnya2008"]
[Result "0-1"]
[WhiteElo "2304"]
[BlackElo "2201"]
[TimeControl "180+1"]
[EndTime "11:52:42 PST"]
[Termination "nikitadovbnya2008 won by resignation"]

1. e4 {[%clk 0:03:00.9]} 1... c6 {[%clk 0:03:00.3]} 2. d4 {[%clk 0:03:00.2]}
2... d5 {[%clk 0:03:01.2]} 3. Nd2 {[%clk 0:03:00.3]} 3... dxe4 {[%clk 0:03:01]}
4. Nxe4 {[%clk 0:03:01.2]} 4... Bf5 {[%clk 0:02:59.8]} 5. Ng3 {[%clk 0:03:01.4]}
5... Bg6 {[%clk 0:03:00.2]} 6. h4 {[%clk 0:03:02.3]} 6... h6 {[%clk 0:03:00.3]}
7. Nf3 {[%clk 0:03:03.2]} 7... Nd7 {[%clk 0:02:59.8]} 8. h5 {[%clk 0:03:03.8]}
8... Bh7 {[%clk 0:03:00.3]} 9. Bd3 {[%clk 0:03:04.7]} 9... Bxd3 {[%clk
0:03:00.9]} 10. Qxd3 {[%clk 0:03:05.6]} 10... Ngf6 {[%clk 0:03:01.4]} 11. Bd2
{[%clk 0:03:06.5]} 11... e6 {[%clk 0:03:01.8]} 12. O-O-O {[%clk 0:03:07.2]}
12... Be7 {[%clk 0:03:01.7]} 13. Kb1 {[%clk 0:03:07.9]} 13... O-O {[%clk
0:03:01.9]} 14. Ne4 {[%clk 0:03:08.5]} 14... Nxe4 {[%clk 0:03:01.8]} 15. Qxe4
{[%clk 0:03:09.4]} 15... Nf6 {[%clk 0:03:02.4]} 16. Qe2 {[%clk 0:03:10.3]} 16...
b5 {[%clk 0:02:58.9]} 17. Ne5 {[%clk 0:03:10.4]} 17... Qd5 {[%clk 0:02:55.1]}
18. g4 {[%clk 0:03:07.5]} 18... Ne4 {[%clk 0:02:42.3]} 19. Be3 {[%clk
0:03:02.5]} 19... a5 {[%clk 0:02:22.3]} 20. Rhg1 {[%clk 0:02:56.3]} 20... a4
{[%clk 0:02:17.2]} 21. f3 {[%clk 0:02:56.5]} 21... Nd6 {[%clk 0:02:09.7]} 22. g5
{[%clk 0:02:57.1]} 22... hxg5 {[%clk 0:02:02]} 23. Bxg5 {[%clk 0:02:58]} 23...
Bxg5 {[%clk 0:02:02.1]} 24. Rxg5 {[%clk 0:02:58.9]} 24... f6 {[%clk 0:02:02.6]}
25. Rxg7+ {[%clk 0:02:32.4]} 25... Kxg7 {[%clk 0:01:55]} 26. Rg1+ {[%clk
0:02:33]} 26... Kh8 {[%clk 0:01:52.4]} 27. Qd2 {[%clk 0:02:24.7]} 27... Nf5
{[%clk 0:01:47.9]} 28. Ng6+ {[%clk 0:02:23.5]} 28... Kh7 {[%clk 0:01:45.7]} 29.
Nxf8+ {[%clk 0:02:16.2]} 29... Rxf8 {[%clk 0:01:46.6]} 30. Qg2 {[%clk
0:02:16.4]} 30... Qd7 {[%clk 0:01:41]} 31. Qg6+ {[%clk 0:02:15.4]} 31... Kh8
{[%clk 0:01:41.2]} 32. h6 {[%clk 0:02:13.4]} 32... Qh7 {[%clk 0:01:38.4]} 33.
Qg2 {[%clk 0:02:06]} 33... Rg8 {[%clk 0:01:37.2]} 34. Qh1 {[%clk 0:02:02.7]}
34... Rxg1+ {[%clk 0:01:36.3]} 35. Qxg1 {[%clk 0:02:03.6]} 35... Qxh6 {[%clk
0:01:35.7]} 36. Qe1 {[%clk 0:02:04.5]} 36... Nxd4 {[%clk 0:01:31.1]} 37. a3
{[%clk 0:02:03]} 37... e5 {[%clk 0:01:28.7]} 38. Qe4 {[%clk 0:02:02.4]} 38...
Qh1+ {[%clk 0:01:22.4]} 39. Ka2 {[%clk 0:02:02.2]} 39... Qxf3 {[%clk 0:01:21.1]}
40. Qg6 {[%clk 0:02:01.7]} 40... Qd5+ {[%clk 0:01:19.3]} 41. Kb1 {[%clk
0:02:00.3]} 41... Qe6 {[%clk 0:01:10.9]} 42. Qh6+ {[%clk 0:01:57.4]} 42... Kg8
{[%clk 0:01:11.1]} 43. Qg6+ {[%clk 0:01:58.1]} 43... Kf8 {[%clk 0:01:11.5]} 44.
Qh6+ {[%clk 0:01:59]} 44... Ke7 {[%clk 0:01:10.8]} 45. Qg7+ {[%clk 0:01:59.2]}
45... Kd6 {[%clk 0:01:10.9]} 46. Qf8+ {[%clk 0:01:58.8]} 46... Qe7 {[%clk
0:01:10.4]} 47. Qb8+ {[%clk 0:01:59.1]} 47... Ke6 {[%clk 0:01:10.4]} 48. Qg8+
{[%clk 0:01:58.9]} 48... Kf5 {[%clk 0:01:06.4]} 49. Qh7+ {[%clk 0:01:58.9]}
49... Qxh7 {[%clk 0:01:05.7]} 0-1

[Event "*** Titled Tuesday Blitz"]
[Site "Chess.com"]
[Date "2020.12.01"]
[Round "10"]
[White "chessmachine14"]
[Black "scoopbh"]
[Result "1-0"]
[WhiteElo "2247"]
[BlackElo "2080"]
[TimeControl "180+1"]
[EndTime "11:52:53 PST"]
[Termination "chessmachine14 won by resignation"]

1. e4 {[%clk 0:03:00.9]} 1... c5 {[%clk 0:02:59.3]} 2. Nf3 {[%clk 0:02:59]} 2...
Nc6 {[%clk 0:02:59.2]} 3. d4 {[%clk 0:02:59.6]} 3... cxd4 {[%clk 0:02:58.2]} 4.
Nxd4 {[%clk 0:03:00.5]} 4... Nf6 {[%clk 0:02:57.2]} 5. Nc3 {[%clk 0:02:59.2]}
5... e5 {[%clk 0:02:57.5]} 6. Ndb5 {[%clk 0:02:59.2]} 6... d6 {[%clk 0:02:57.8]}
7. Bg5 {[%clk 0:02:59.2]} 7... a6 {[%clk 0:02:56.7]} 8. Na3 {[%clk 0:02:59.4]}
8... b5 {[%clk 0:02:57.1]} 9. Bxf6 {[%clk 0:02:57.2]} 9... gxf6 {[%clk
0:02:56.4]} 10. Nd5 {[%clk 0:02:58.1]} 10... Bg7 {[%clk 0:02:56.1]} 11. Bd3
{[%clk 0:02:57.1]} 11... f5 {[%clk 0:02:55.5]} 12. Qh5 {[%clk 0:02:55.2]} 12...
Ne7 {[%clk 0:02:42.1]} 13. Qg5 {[%clk 0:02:04.6]} 13... Nxd5 {[%clk 0:02:04.7]}
14. Qxg7 {[%clk 0:02:04.1]} 14... Qf6 {[%clk 0:02:04.9]} 15. Qxf6 {[%clk
0:02:01.3]} 15... Nxf6 {[%clk 0:02:05.8]} 16. exf5 {[%clk 0:02:01]} 16... d5
{[%clk 0:02:06.2]} 17. c3 {[%clk 0:01:51.9]} 17... e4 {[%clk 0:02:04.3]} 18. Be2
{[%clk 0:01:52.2]} 18... Bxf5 {[%clk 0:02:04.4]} 19. Nc2 {[%clk 0:01:52.4]}
19... Ke7 {[%clk 0:01:49]} 20. O-O-O {[%clk 0:01:47.8]} 20... Rhd8 {[%clk
0:01:41]} 21. Ne3 {[%clk 0:01:47.4]} 21... Be6 {[%clk 0:01:36.6]} 22. f4 {[%clk
0:01:45.2]} 22... exf3 {[%clk 0:01:29.6]} 23. Bxf3 {[%clk 0:01:43.6]} 23... Ne4
{[%clk 0:01:29.8]} 24. Nxd5+ {[%clk 0:01:38.9]} 24... Bxd5 {[%clk 0:01:24.1]}
25. Rxd5 {[%clk 0:01:37.1]} 25... Rxd5 {[%clk 0:01:25]} 26. Bxe4 {[%clk
0:01:37.4]} 26... Rdd8 {[%clk 0:01:25.9]} 27. Bxa8 {[%clk 0:01:36.8]} 27... Rxa8
{[%clk 0:01:24.2]} 28. Re1+ {[%clk 0:01:36.7]} 28... Kf6 {[%clk 0:01:18.7]} 29.
Re4 {[%clk 0:01:29.7]} 29... Rg8 {[%clk 0:01:16.6]} 30. Rf4+ {[%clk 0:01:24.2]}
30... Ke6 {[%clk 0:01:12.8]} 31. g3 {[%clk 0:01:24.5]} 31... h6 {[%clk 0:01:03]}
32. Kd2 {[%clk 0:01:21.3]} 32... Rg5 {[%clk 0:01:02.3]} 33. Ke3 {[%clk
0:01:17.9]} 33... Re5+ {[%clk 0:01:00.6]} 34. Re4 {[%clk 0:01:18]} 1-0

[Event "*** Titled Tuesday Blitz"]
[Site "Chess.com"]
[Date "2020.12.01"]
[Round "10"]
[White "queen_iryna"]
[Black "Alindsay211"]
[Result "1-0"]
[WhiteElo "2323"]
[BlackElo "2380"]
[TimeControl "180+1"]
[EndTime "11:52:58 PST"]
[Termination "queen_iryna won by resignation"]

1. e4 {[%clk 0:03:00.9]} 1... c5 {[%clk 0:02:52.2]} 2. Nf3 {[%clk 0:03:00.7]}
2... d6 {[%clk 0:02:52.5]} 3. Bb5+ {[%clk 0:03:00.4]} 3... Bd7 {[%clk
0:02:51.4]} 4. Bxd7+ {[%clk 0:03:00]} 4... Qxd7 {[%clk 0:02:50.9]} 5. d4 {[%clk
0:03:00.3]} 5... cxd4 {[%clk 0:02:50.4]} 6. Nxd4 {[%clk 0:02:59]} 6... Nf6
{[%clk 0:02:50.4]} 7. f3 {[%clk 0:02:54.7]} 7... Nc6 {[%clk 0:02:48.3]} 8. c4
{[%clk 0:02:52.4]} 8... g6 {[%clk 0:02:44.1]} 9. Nc3 {[%clk 0:02:50.7]} 9... Bg7
{[%clk 0:02:43]} 10. Be3 {[%clk 0:02:50.9]} 10... O-O {[%clk 0:02:41]} 11. Rc1
{[%clk 0:02:50.5]} 11... a5 {[%clk 0:02:35.1]} 12. O-O {[%clk 0:02:50.1]} 12...
Rfc8 {[%clk 0:02:29.9]} 13. b3 {[%clk 0:02:43.2]} 13... h5 {[%clk 0:02:24.8]}
14. Qd2 {[%clk 0:02:37.4]} 14... Bh8 {[%clk 0:02:02]} 15. Rfd1 {[%clk
0:02:35.3]} 15... Nxd4 {[%clk 0:01:36.1]} 16. Bxd4 {[%clk 0:02:34.1]} 16... Qc6
{[%clk 0:01:31.2]} 17. Nd5 {[%clk 0:02:24.4]} 17... Nxd5 {[%clk 0:01:26.8]} 18.
cxd5 {[%clk 0:02:24]} 18... Qd7 {[%clk 0:01:23.3]} 19. Bxh8 {[%clk 0:02:23.1]}
19... Kxh8 {[%clk 0:01:12.5]} 20. Rxc8+ {[%clk 0:02:17.5]} 20... Qxc8 {[%clk
0:01:13.4]} 21. Rc1 {[%clk 0:02:17.4]} 21... Qd7 {[%clk 0:01:12.6]} 22. Rc4
{[%clk 0:02:02.9]} 22... a4 {[%clk 0:01:07.3]} 23. Qc3+ {[%clk 0:01:57.4]} 23...
Kg8 {[%clk 0:01:04.8]} 24. Rc7 {[%clk 0:01:54.3]} 24... Qb5 {[%clk 0:01:01]} 25.
Rxe7 {[%clk 0:01:45]} 25... axb3 {[%clk 0:00:43.5]} 26. axb3 {[%clk 0:01:43.9]}
26... Qe2 {[%clk 0:00:32.5]} 27. h3 {[%clk 0:01:34.5]} 27... Ra2 {[%clk
0:00:25.7]} 28. Re8+ {[%clk 0:01:33.8]} 1-0

[Event "*** Titled Tuesday Blitz"]
[Site "Chess.com"]
[Date "2020.12.01"]
[Round "10"]
[White "leoduarte"]
[Black "vladgoncharov"]
[Result "0-1"]
[WhiteElo "2346"]
[BlackElo "2481"]
[TimeControl "180+1"]
[EndTime "11:53:00 PST"]
[Termination "vladgoncharov won by resignation"]

1. e4 {[%clk 0:03:00.9]} 1... e6 {[%clk 0:02:59.1]} 2. d4 {[%clk 0:03:00.5]}
2... d5 {[%clk 0:02:58.2]} 3. Nd2 {[%clk 0:03:01]} 3... Be7 {[%clk 0:02:57.7]}
4. Ngf3 {[%clk 0:02:44.2]} 4... Nf6 {[%clk 0:02:54.9]} 5. e5 {[%clk 0:02:44.8]}
5... Nfd7 {[%clk 0:02:54.7]} 6. Bd3 {[%clk 0:02:45.3]} 6... c5 {[%clk
0:02:55.4]} 7. c3 {[%clk 0:02:45.8]} 7... Nc6 {[%clk 0:02:56]} 8. O-O {[%clk
0:02:45.1]} 8... g5 {[%clk 0:02:56]} 9. dxc5 {[%clk 0:02:38.7]} 9... g4 {[%clk
0:02:54.6]} 10. Nd4 {[%clk 0:02:37.9]} 10... Ndxe5 {[%clk 0:02:49.6]} 11. N2b3
{[%clk 0:02:33.7]} 11... Nxd3 {[%clk 0:02:43.8]} 12. Qxd3 {[%clk 0:02:29.7]}
12... e5 {[%clk 0:02:43.5]} 13. Nxc6 {[%clk 0:02:21]} 13... bxc6 {[%clk
0:02:42.9]} 14. Qe2 {[%clk 0:02:21.7]} 14... f6 {[%clk 0:02:38.2]} 15. f4 {[%clk
0:02:06]} 15... gxf3 {[%clk 0:02:35.2]} 16. Qxf3 {[%clk 0:02:05.7]} 16... Be6
{[%clk 0:02:34.4]} 17. Bh6 {[%clk 0:02:00.5]} 17... Rg8 {[%clk 0:02:31.2]} 18.
Qh5+ {[%clk 0:01:53.6]} 18... Bf7 {[%clk 0:02:26.8]} 19. Qf5 {[%clk 0:01:40.9]}
19... Rg6 {[%clk 0:02:18]} 20. Be3 {[%clk 0:01:30.9]} 20... Qd7 {[%clk
0:02:16.7]} 21. Qd3 {[%clk 0:01:28.1]} 21... Kf8 {[%clk 0:02:11.3]} 22. Rf2
{[%clk 0:01:23.2]} 22... Kg8 {[%clk 0:02:10.5]} 23. Raf1 {[%clk 0:01:23.3]}
23... Kh8 {[%clk 0:02:09.5]} 24. Nc1 {[%clk 0:01:10.5]} 24... Rag8 {[%clk
0:02:08.3]} 25. Kh1 {[%clk 0:01:08.9]} 25... Be6 {[%clk 0:01:54.9]} 26. Ne2
{[%clk 0:01:07.2]} 26... f5 {[%clk 0:01:45.8]} 27. g3 {[%clk 0:01:07.1]} 27...
f4 {[%clk 0:01:30.2]} 28. gxf4 {[%clk 0:01:02.1]} 28... d4 {[%clk 0:01:30.3]}
29. cxd4 {[%clk 0:00:45.7]} 29... Bd5+ {[%clk 0:01:27.7]} 30. Rf3 {[%clk
0:00:45.7]} 30... e4 {[%clk 0:01:27.9]} 0-1

[Event "*** Titled Tuesday Blitz"]
[Site "Chess.com"]
[Date "2020.12.01"]
[Round "10"]
[White "Abdimalik_Abdisalimov"]
[Black "Andrii_Prydun"]
[Result "1-0"]
[WhiteElo "2671"]
[BlackElo "2341"]
[TimeControl "180+1"]
[EndTime "11:53:07 PST"]
[Termination "Abdimalik_Abdisalimov won by checkmate"]

1. d4 {[%clk 0:03:00.9]} 1... d5 {[%clk 0:03:00.2]} 2. c4 {[%clk 0:03:00.3]}
2... c6 {[%clk 0:03:01.1]} 3. cxd5 {[%clk 0:02:58.9]} 3... cxd5 {[%clk
0:03:00.2]} 4. Nc3 {[%clk 0:02:59]} 4... Nf6 {[%clk 0:03:00.1]} 5. Bf4 {[%clk
0:02:58.4]} 5... Nc6 {[%clk 0:03:00.3]} 6. Nf3 {[%clk 0:02:58.1]} 6... e6 {[%clk
0:02:59.4]} 7. e3 {[%clk 0:02:56.8]} 7... Bd6 {[%clk 0:02:58.1]} 8. Bg3 {[%clk
0:02:46.9]} 8... Bxg3 {[%clk 0:02:57.9]} 9. hxg3 {[%clk 0:02:46.4]} 9... Qd6
{[%clk 0:02:58.8]} 10. Be2 {[%clk 0:02:40.8]} 10... O-O {[%clk 0:02:57.6]} 11.
O-O {[%clk 0:02:40.4]} 11... e5 {[%clk 0:02:57.6]} 12. Nb5 {[%clk 0:01:57.8]}
12... Qb8 {[%clk 0:02:51.8]} 13. dxe5 {[%clk 0:01:56.4]} 13... Nxe5 {[%clk
0:02:51.9]} 14. Qb3 {[%clk 0:01:41.4]} 14... Bg4 {[%clk 0:02:45.3]} 15. Rac1
{[%clk 0:01:26.3]} 15... Bxf3 {[%clk 0:02:42]} 16. Bxf3 {[%clk 0:01:21.4]} 16...
Nxf3+ {[%clk 0:02:41.6]} 17. gxf3 {[%clk 0:01:21.3]} 17... Qe5 {[%clk
0:02:41.1]} 18. Kg2 {[%clk 0:01:13.3]} 18... Rfd8 {[%clk 0:02:37.8]} 19. Rfd1
{[%clk 0:01:12.7]} 19... Rab8 {[%clk 0:02:35.3]} 20. Nxa7 {[%clk 0:01:01.3]}
20... h5 {[%clk 0:02:31.5]} 21. Nb5 {[%clk 0:00:49.7]} 21... h4 {[%clk
0:02:30.7]} 22. Qc3 {[%clk 0:00:41.6]} 22... Qh5 {[%clk 0:02:28.9]} 23. Rh1
{[%clk 0:00:35.6]} 23... Ra8 {[%clk 0:01:33.3]} 24. Rxh4 {[%clk 0:00:34.1]}
24... Qg5 {[%clk 0:01:33.8]} 25. Rch1 {[%clk 0:00:32.8]} 25... g6 {[%clk
0:01:21.3]} 26. Rh8+ {[%clk 0:00:24.2]} 26... Kg7 {[%clk 0:01:20.7]} 27. R1h7#
{[%clk 0:00:24.2]} 1-0

[Event "*** Titled Tuesday Blitz"]
[Site "Chess.com"]
[Date "2020.12.01"]
[Round "10"]
[White "Ranindu2003"]
[Black "Zkid"]
[Result "0-1"]
[WhiteElo "2600"]
[BlackElo "2785"]
[TimeControl "180+1"]
[EndTime "11:53:12 PST"]
[Termination "Zkid won by resignation"]

1. e4 {[%clk 0:02:59.8]} 1... e6 {[%clk 0:02:57.3]} 2. d4 {[%clk 0:02:59.2]}
2... d5 {[%clk 0:02:57.8]} 3. Nd2 {[%clk 0:02:59.6]} 3... c5 {[%clk 0:02:57]} 4.
exd5 {[%clk 0:02:59.7]} 4... Qxd5 {[%clk 0:02:57.9]} 5. Ngf3 {[%clk 0:03:00.1]}
5... cxd4 {[%clk 0:02:58.1]} 6. Bc4 {[%clk 0:03:00.8]} 6... Qd7 {[%clk
0:02:58.5]} 7. O-O {[%clk 0:03:00.3]} 7... Nc6 {[%clk 0:02:58.5]} 8. Nb3 {[%clk
0:02:59.7]} 8... Nf6 {[%clk 0:02:59.1]} 9. Nbxd4 {[%clk 0:02:59.5]} 9... Nxd4
{[%clk 0:03:00]} 10. Nxd4 {[%clk 0:03:00.4]} 10... a6 {[%clk 0:02:59.9]} 11. Re1
{[%clk 0:02:59.8]} 11... Bc5 {[%clk 0:02:57]} 12. Be3 {[%clk 0:02:52.6]} 12...
O-O {[%clk 0:02:56.6]} 13. Nxe6 {[%clk 0:01:58.7]} 13... Qxd1 {[%clk 0:02:54.9]}
14. Raxd1 {[%clk 0:01:58.3]} 14... Bxe6 {[%clk 0:02:54.9]} 15. Bxc5 {[%clk
0:01:53.4]} 15... Bxc4 {[%clk 0:02:54.9]} 16. Bxf8 {[%clk 0:01:53.2]} 16... Kxf8
{[%clk 0:02:54.7]} 17. b3 {[%clk 0:01:51.7]} 17... Bd5 {[%clk 0:02:54.1]} 18.
Rd4 {[%clk 0:01:50.6]} 18... Rc8 {[%clk 0:02:48.8]} 19. c4 {[%clk 0:01:49.9]}
19... Be6 {[%clk 0:02:49.2]} 20. f3 {[%clk 0:01:48.5]} 20... Ke7 {[%clk
0:02:43.9]} 21. f4 {[%clk 0:01:45.8]} 21... g6 {[%clk 0:02:41.8]} 22. h3 {[%clk
0:01:45.6]} 22... h5 {[%clk 0:02:40.8]} 23. Kf2 {[%clk 0:01:41.7]} 23... Rc5
{[%clk 0:02:37.1]} 24. b4 {[%clk 0:01:35.3]} 24... Rc7 {[%clk 0:02:28.4]} 25. c5
{[%clk 0:01:35.2]} 25... Kf8 {[%clk 0:02:21.8]} 26. Rd8+ {[%clk 0:01:31]} 26...
Kg7 {[%clk 0:02:21.5]} 27. a3 {[%clk 0:01:30.2]} 27... Nd5 {[%clk 0:02:19.1]}
28. Kf3 {[%clk 0:01:23.8]} 28... Nc3 {[%clk 0:02:12.6]} 29. g4 {[%clk
0:01:15.2]} 29... h4 {[%clk 0:02:08.1]} 30. Rc1 {[%clk 0:00:59.3]} 30... Bd5+
{[%clk 0:01:57.4]} 31. Ke3 {[%clk 0:00:51]} 31... Re7+ {[%clk 0:01:56.4]} 32.
Kd3 {[%clk 0:00:47.2]} 32... Ne2 {[%clk 0:01:51.4]} 33. Rf1 {[%clk 0:00:30.2]}
33... Bg2 {[%clk 0:01:43.8]} 34. Rf2 {[%clk 0:00:26.9]} 34... Bxh3 {[%clk
0:01:44]} 35. Rxe2 {[%clk 0:00:24.9]} 35... Bf1 {[%clk 0:01:43]} 0-1

[Event "*** Titled Tuesday Blitz"]
[Site "Chess.com"]
[Date "2020.12.01"]
[Round "10"]
[White "chessmadara"]
[Black "Kaslask"]
[Result "0-1"]
[WhiteElo "2183"]
[BlackElo "2323"]
[TimeControl "180+1"]
[EndTime "11:53:18 PST"]
[Termination "Kaslask won by resignation"]

1. e4 {[%clk 0:03:00.9]} 1... c5 {[%clk 0:02:58.1]} 2. Nf3 {[%clk 0:03:00.2]}
2... Nc6 {[%clk 0:02:56]} 3. d4 {[%clk 0:03:00.4]} 3... cxd4 {[%clk 0:02:55.9]}
4. Nxd4 {[%clk 0:03:01.3]} 4... g6 {[%clk 0:02:53.4]} 5. Nc3 {[%clk 0:02:56.8]}
5... Bg7 {[%clk 0:02:49.5]} 6. Be3 {[%clk 0:02:57.3]} 6... Nf6 {[%clk
0:02:48.4]} 7. Bc4 {[%clk 0:02:54.8]} 7... d6 {[%clk 0:02:47.3]} 8. Bb3 {[%clk
0:02:52.8]} 8... Ng4 {[%clk 0:02:45.3]} 9. Nxc6 {[%clk 0:02:44.4]} 9... bxc6
{[%clk 0:02:36.7]} 10. Bf4 {[%clk 0:02:30.3]} 10... Qb6 {[%clk 0:02:33.1]} 11.
O-O {[%clk 0:02:25]} 11... O-O {[%clk 0:02:27.7]} 12. h3 {[%clk 0:02:22]} 12...
Ne5 {[%clk 0:02:24.4]} 13. Be3 {[%clk 0:02:20.6]} 13... Qa5 {[%clk 0:02:20.8]}
14. f4 {[%clk 0:02:13]} 14... Nd7 {[%clk 0:02:17.3]} 15. Bd4 {[%clk 0:02:05.6]}
15... Bxd4+ {[%clk 0:02:09.4]} 16. Qxd4 {[%clk 0:02:04.6]} 16... Qc5 {[%clk
0:02:07.2]} 17. Rad1 {[%clk 0:01:52]} 17... Ba6 {[%clk 0:02:06]} 18. Rfe1 {[%clk
0:01:48.1]} 18... Qxd4+ {[%clk 0:02:00.6]} 19. Rxd4 {[%clk 0:01:49]} 19... Nc5
{[%clk 0:02:00.1]} 20. e5 {[%clk 0:01:44.8]} 20... d5 {[%clk 0:01:59]} 21. Ba4
{[%clk 0:01:19.9]} 21... Rac8 {[%clk 0:01:55.4]} 22. g4 {[%clk 0:01:09.5]} 22...
Ne6 {[%clk 0:01:53.7]} 23. Rb4 {[%clk 0:01:08]} 23... c5 {[%clk 0:01:53.3]} 24.
Rb3 {[%clk 0:01:03]} 24... Nxf4 {[%clk 0:01:50]} 25. Kh2 {[%clk 0:00:57.6]}
25... d4 {[%clk 0:01:43.4]} 26. Ne4 {[%clk 0:00:56.3]} 26... c4 {[%clk
0:01:34.5]} 27. Rf3 {[%clk 0:00:56.1]} 27... Nd5 {[%clk 0:01:32.1]} 28. Ng5
{[%clk 0:00:50.2]} 28... d3 {[%clk 0:01:28.1]} 29. cxd3 {[%clk 0:00:48.4]} 29...
cxd3 {[%clk 0:01:27.7]} 30. Bd7 {[%clk 0:00:47.1]} 30... Rc2+ {[%clk 0:01:25.3]}
31. Kg3 {[%clk 0:00:46]} 31... d2 {[%clk 0:01:25.1]} 32. Rg1 {[%clk 0:00:36.9]}
32... Rc1 {[%clk 0:01:19.5]} 0-1

[Event "*** Titled Tuesday Blitz"]
[Site "Chess.com"]
[Date "2020.12.01"]
[Round "10"]
[White "TimurGareyev"]
[Black "Sam_ChessMood"]
[Result "1-0"]
[WhiteElo "2713"]
[BlackElo "2811"]
[TimeControl "180+1"]
[EndTime "11:53:19 PST"]
[Termination "TimurGareyev won by resignation"]

1. c4 {[%clk 0:03:00.9]} 1... Nf6 {[%clk 0:02:59.1]} 2. g3 {[%clk 0:03:00.1]}
2... e5 {[%clk 0:02:57.5]} 3. Bg2 {[%clk 0:02:58.7]} 3... c6 {[%clk 0:02:57.2]}
4. Nf3 {[%clk 0:02:58.5]} 4... e4 {[%clk 0:02:57.6]} 5. Nd4 {[%clk 0:02:54]}
5... Qb6 {[%clk 0:02:57.8]} 6. Nb3 {[%clk 0:02:49.8]} 6... a5 {[%clk 0:02:57.9]}
7. a4 {[%clk 0:02:40.8]} 7... d5 {[%clk 0:02:41.5]} 8. cxd5 {[%clk 0:02:41.7]}
8... cxd5 {[%clk 0:02:42.4]} 9. O-O {[%clk 0:02:38.6]} 9... Bb4 {[%clk
0:02:39.7]} 10. d3 {[%clk 0:02:36.5]} 10... O-O {[%clk 0:02:39]} 11. Be3 {[%clk
0:02:36.2]} 11... Qd8 {[%clk 0:02:32.2]} 12. Nc3 {[%clk 0:02:36.1]} 12... Ng4
{[%clk 0:02:19.4]} 13. Bf4 {[%clk 0:02:24.7]} 13... f5 {[%clk 0:01:35.6]} 14. f3
{[%clk 0:02:03.2]} 14... exf3 {[%clk 0:01:32.6]} 15. Bxf3 {[%clk 0:02:04.1]}
15... Bxc3 {[%clk 0:01:24.7]} 16. bxc3 {[%clk 0:02:03.5]} 16... Nc6 {[%clk
0:01:20.4]} 17. Rb1 {[%clk 0:02:03]} 17... b6 {[%clk 0:01:05]} 18. Nd4 {[%clk
0:02:01.1]} 18... Nxd4 {[%clk 0:01:03.5]} 19. cxd4 {[%clk 0:02:02]} 19... Be6
{[%clk 0:00:58.3]} 20. Qb3 {[%clk 0:02:01.9]} 20... Ra6 {[%clk 0:00:26.2]} 21.
Qb5 {[%clk 0:01:56.9]} 21... Qa8 {[%clk 0:00:22.1]} 22. Rfc1 {[%clk 0:01:56.4]}
22... Rc8 {[%clk 0:00:15.5]} 23. Rxc8+ {[%clk 0:01:56.4]} 23... Qxc8 {[%clk
0:00:16.4]} 24. Rc1 {[%clk 0:01:56.8]} 24... Qa8 {[%clk 0:00:13.1]} 25. Rc6
{[%clk 0:01:38]} 25... Kf7 {[%clk 0:00:12.1]} 26. Bxd5 {[%clk 0:01:29.1]} 1-0